bitfinex/quotes_SOLUSD_20250625
["timestamp","ask_amount","ask_price","bid_price","bid_amount"]
[1750843155500,12.34665797,146.27,146.23,13.21850731]
[1750843155999,5.50997528,146.26,146.23,6.38]
[1750843158098,5.50997528,146.26,146.23,13.21844407]
[1750843158298,6.83627104,146.28,146.23,13.21844407]
[1750843158505,26.0,146.29,146.24,5.50997528]
[1750843158506,38.34579029,146.29,146.24,5.50997528]
[1750843159201,12.34441821,146.32,146.28,5.50997528]
[1750843159599,12.34441821,146.32,146.29,6.38]
[1750843159794,6.83293474,146.35,146.29,100.58997528]
[1750843159988,5.50997528,146.34,146.29,100.58997528]
[1750843160190,31.50997528,146.34,146.29,100.58997528]
[1750843161105,38.34378238,146.34,146.29,107.42565347]
[1750843162392,38.34378238,146.34,146.29,100.58997528]
[1750843162595,5.50997528,146.33,146.29,100.58997528]
[1750843163604,12.3441453,146.33,146.29,100.58997528]
[1750843166509,12.3441453,146.33,146.29,95.08]
[1750843167705,12.3441453,146.33,146.29,100.58997528]
[1750843168009,32.83355523,146.34,146.3,5.50997528]
[1750843168312,38.34353051,146.34,146.3,5.50997528]
[1750843169311,26.0,146.34,146.3,12.34510369]
[1750843169512,6.83060109,146.4,146.33,5.50997528]
[1750843169712,5.50997528,146.38,146.34,5.50997528]
[1750843170011,5.50997528,146.37,146.35,6.38]
[1750843171024,5.50997528,146.38,146.35,6.38]
[1750843171208,12.34106672,146.39,146.35,6.38]
[1750843171519,5.50997528,146.39,146.35,18.72281466]
[1750843172318,5.50997528,146.39,146.35,6.38]
[1750843173402,6.83153436,146.38,146.35,6.38]
[1750843173817,12.34121743,146.39,146.35,6.38]
[1750843174818,5.50997528,146.39,146.35,18.72282747]
[1750843175012,12.34111893,146.39,146.35,18.72282747]
[1750843175316,12.34183558,146.38,146.35,6.38]
[1750843177425,5.50997528,146.38,146.35,6.38]
[1750843177626,5.50997528,146.38,146.35,13.21284749]
[1750843177923,5.50997528,146.38,146.35,6.38]
[1750843178227,12.34155812,146.38,146.35,6.38]
[1750843181328,5.50997528,146.36,146.35,6.38]
[1750843183207,6.83293474,146.35,146.29,13.21557306]
[1750843183432,5.50997528,146.35,146.3,5.50997528]
[1750843184631,12.34302449,146.35,146.3,12.34483511]
[1750843185106,5.50997528,146.34,146.3,12.34483511]
[1750843188221,12.34302449,146.35,146.3,12.34483511]
[1750843188422,5.50997528,146.35,146.31,5.50997528]
[1750843188624,38.34265265,146.36,146.3,35.37485983]
[1750843188932,38.34265265,146.36,146.31,5.50997528]
[1750843189738,38.34265265,146.36,146.31,12.34442093]
[1750843190224,31.50997528,146.36,146.32,5.50997528]
[1750843190541,31.50997528,146.36,146.32,94.20997528]
[1750843191242,31.50997528,146.36,146.32,88.7]
[1750843191743,31.50997528,146.36,146.32,95.53429884]
[1750843193434,31.50997528,146.36,146.32,101.04427412]
[1750843194714,31.50997528,146.36,146.32,95.53429884]
[1750843195318,5.50997528,146.35,146.32,88.7]
[1750843196921,38.34270637,146.36,146.32,95.53423971]
[1750843197236,31.50997528,146.36,146.32,95.53423971]
[1750843197424,12.34171561,146.38,146.33,5.50997528]
[1750843197830,5.50997528,146.37,146.33,5.50997528]
[1750843198560,12.342097,146.37,146.33,12.34381441]
[1750843198921,12.342097,146.37,146.32,129.58408013]
[1750843200043,5.50997528,146.36,146.32,88.7]
[1750843200222,5.50997528,146.34,146.3,5.50997528]
[1750843200728,23.91212445,146.37,146.3,5.50997528]
[1750843200729,5.50997528,146.35,146.3,5.50997528]
[1750843201132,5.50997528,146.36,146.31,5.50997528]
[1750843201444,12.34173543,146.38,146.34,5.50997528]
[1750843201624,12.34173543,146.38,146.35,6.36]
[1750843201831,6.83122488,146.39,146.35,11.86997528]
[1750843202726,5.50997528,146.39,146.35,18.70286486]
[1750843203412,5.50997528,146.39,146.35,13.19288958]
[1750843203612,5.50997528,146.39,146.35,11.86997528]
[1750843204113,5.50997528,146.38,146.35,6.36]
[1750843204841,12.34129344,146.39,146.35,6.36]
[1750843205142,12.34129344,146.39,146.35,13.19280238]
[1750843205332,12.34129344,146.39,146.35,18.70277766]
[1750843206342,5.50997528,146.38,146.35,6.36]
[1750843207435,26.0,146.4,146.35,18.70282332]
[1750843207653,5.50997528,146.41,146.37,5.50997528]
[1750843207825,20.252368,146.42,146.37,94.20997528]
[1750843208024,18.646968,146.42,146.37,94.20997528]
[1750843208222,6.82940953,146.43,146.37,122.72997528]
[1750843208421,5.50997528,146.43,146.39,5.50997528]
[1750843208648,5.50997528,146.42,146.37,117.22]
[1750843208818,5.50997528,146.42,146.38,5.50997528]
[1750843209246,5.50997528,146.42,146.38,94.20997528]
[1750843209620,12.33966079,146.42,146.38,94.20997528]
[1750843210039,5.50997528,146.41,146.38,88.7]
[1750843210643,5.50997528,146.4,146.38,88.7]
[1750843211927,12.34060522,146.4,146.38,88.7]
[1750843212947,5.50997528,146.4,146.38,88.7]
[1750843213126,5.50997528,146.41,146.38,88.7]
[1750843214454,12.3403864,146.41,146.38,88.7]
[1750843214627,7.73,146.45,146.39,5.50997528]
[1750843214830,7.73,146.45,146.4,5.50997528]
[1750843214831,5.50997528,146.44,146.4,5.50997528]
[1750843215031,31.50997528,146.44,146.41,6.36]
[1750843217041,5.50997528,146.43,146.41,6.36]
[1750843217841,38.3387276,146.44,146.41,6.36]
[1750843219964,5.50997528,146.43,146.41,95.06]
[1750843220636,31.50997528,146.42,146.41,95.06]
[1750843220847,31.50997528,146.42,146.41,6.36]
[1750843220848,38.33964335,146.42,146.41,6.36]
[1750843221464,38.33964335,146.42,146.38,6.34]
[1750843221756,5.50997528,146.39,146.38,6.34]
[1750843223864,6.83034668,146.41,146.38,6.34]
[1750843224256,5.50997528,146.4,146.38,6.34]
[1750843225463,26.0,146.42,146.38,6.34]
[1750843225762,32.82891321,146.44,146.39,5.50997528]
[1750843225937,38.33888849,146.44,146.39,33.98997528]
[1750843226266,5.50997528,146.43,146.39,33.98997528]
[1750843226559,31.50997528,146.44,146.39,33.98997528]
[1750843226760,31.50997528,146.44,146.4,5.50997528]
[1750843227146,26.0,146.44,146.4,5.50997528]
[1750843227457,31.50997528,146.44,146.4,5.50997528]
[1750843227758,31.50997528,146.44,146.4,12.34057637]
[1750843229759,26.0,146.46,146.42,5.50997528]
[1750843229951,25.47512152,146.51,146.44,5.50997528]
[1750843230159,31.50997528,146.49,146.45,6.34]
[1750843230334,5.50997528,146.48,146.45,6.34]
[1750843230541,5.50997528,146.47,146.45,6.34]
[1750843231448,12.33732222,146.47,146.45,6.34]
[1750843232768,5.50997528,146.46,146.45,6.34]
[1750843232978,31.50997528,146.46,146.45,6.34]
[1750843233571,38.33777809,146.46,146.45,6.34]
[1750843235254,32.82780281,146.46,146.45,6.34]
[1750843235570,38.33777809,146.46,146.45,6.34]
[1750843236359,5.50997528,146.47,146.45,6.34]
[1750843236544,17.06369659,146.51,146.45,11.84997528]
[1750843236869,26.0,146.48,146.45,11.84997528]
[1750843238150,26.0,146.48,146.45,18.67819996]
[1750843239170,26.0,146.48,146.45,11.84997528]
[1750843239471,26.0,146.48,146.45,18.67811253]
[1750843241668,5.50997528,146.49,146.45,18.67811253]
[1750843241867,31.50997528,146.5,146.45,18.67811253]
[1750843242172,6.82516998,146.52,146.47,5.50997528]
[1750843242473,31.50997528,146.51,146.47,88.7]
[1750843242771,5.50997528,146.51,146.47,88.7]
[1750843243871,6.82593856,146.5,146.47,88.7]
[1750843244071,12.33591384,146.5,146.47,88.7]
[1750843244472,5.50997528,146.49,146.47,88.7]
[1750843244765,5.50997528,146.48,146.46,6.34]
[1750843244946,5.50997528,146.47,146.46,6.34]
[1750843245565,6.82687056,146.48,146.46,6.34]
[1750843245774,6.82454104,146.53,146.46,34.8]
[1750843245946,6.82454104,146.53,146.47,5.50997528]
[1750843246142,32.82454104,146.53,146.47,5.50997528]
[1750843246387,5.50997528,146.52,146.47,5.50997528]
[1750843246671,5.50997528,146.52,146.46,41.62764547]
[1750843246873,5.50997528,146.52,146.48,5.50997528]
[1750843247073,5.50997528,146.51,146.46,130.32764547]
[1750843247267,32.82429132,146.54,146.46,135.83762075]
[1750843247482,5.50997528,146.52,146.47,5.50997528]
[1750843247858,32.82429132,146.54,146.48,6.82687056]
[1750843248059,5.50997528,146.52,146.48,6.82687056]
[1750843248474,5.50997528,146.52,146.48,12.33684584]
[1750843251286,32.82426702,146.54,146.48,12.33684584]
[1750843251495,5.50997528,146.53,146.48,12.33684584]
[1750843251792,5.50997528,146.53,146.49,5.50997528]
[1750843252488,5.50997528,146.56,146.51,5.50997528]
[1750843252784,12.33319414,146.56,146.52,13.14500682]
[1750843252988,38.33319414,146.56,146.52,13.14500682]
[1750843253173,5.50997528,146.55,146.52,6.32]
[1750843254593,12.33373025,146.55,146.52,6.32]
[1750843255290,32.8232685,146.56,146.52,6.32]
[1750843255485,38.33324378,146.56,146.52,6.32]
[1750843255665,32.8232685,146.56,146.52,6.32]
[1750843255866,5.50997528,146.54,146.52,6.32]
[1750843256689,12.33436451,146.54,146.52,6.32]
[1750843257194,6.82438923,146.54,146.52,6.32]
[1750843257797,12.33436451,146.54,146.52,6.32]
[1750843258183,6.82438923,146.54,146.52,6.32]
[1750843258618,5.50997528,146.54,146.52,6.32]
[1750843259894,6.82360968,146.55,146.52,6.32]
[1750843260086,12.33449277,146.54,146.52,6.32]
[1750843260766,5.50997528,146.53,146.52,6.32]
[1750843261398,26.0,146.5,146.48,6.32]
[1750843261868,5.50997528,146.49,146.48,6.32]
[1750843262068,30.98602867,146.49,146.48,6.32]
[1750843262573,12.33637981,146.49,146.48,6.32]
[1750843264383,5.50997528,146.49,146.48,6.32]
[1750843264585,12.33637981,146.49,146.48,6.32]
[1750843265488,12.33451632,146.53,146.48,11.82997528]
[1750843265692,5.50997528,146.52,146.48,11.82997528]
[1750843265908,31.50997528,146.52,146.48,11.82997528]
[1750843266196,5.50997528,146.53,146.49,5.50997528]
[1750843266380,12.33423706,146.54,146.49,5.50997528]
[1750843267102,12.33423706,146.54,146.5,5.50997528]
[1750843267299,12.33423706,146.54,146.48,13.14673726]
[1750843267300,12.33372794,146.55,146.51,5.50997528]
[1750843267509,12.33372794,146.55,146.5,5.50997528]
[1750843267686,5.50997528,146.54,146.5,5.50997528]
[1750843268200,6.82375266,146.55,146.48,34.74]
[1750843268398,5.50997528,146.54,146.5,5.50997528]
[1750843268703,12.33372794,146.55,146.48,34.74]
[1750843268882,12.33372794,146.55,146.5,5.50997528]
[1750843270106,32.82344106,146.56,146.51,5.50997528]
[1750843270411,31.50997528,146.55,146.51,5.50997528]
[1750843271301,31.50997528,146.55,146.51,12.33543097]
[1750843272704,26.0,146.55,146.51,12.33543097]
[1750843272905,5.50997528,146.56,146.52,5.50997528]
[1750843273109,12.3328444,146.57,146.52,5.50997528]
[1750843273403,12.3328444,146.57,146.52,12.3349352]
[1750843275684,12.33318747,146.56,146.52,12.3349352]
[1750843275887,12.33318747,146.56,146.49,114.7]
[1750843276089,12.33318747,146.56,146.51,5.50997528]
[1750843277594,5.50997528,146.55,146.51,5.50997528]
[1750843278503,31.50997528,146.56,146.52,12.3349821]
[1750843279699,8.26918712,146.58,146.52,12.3349821]
[1750843279894,32.95679218,146.58,146.53,5.50997528]
[1750843280097,5.50997528,146.56,146.54,6.32]
[1750843280497,12.33329473,146.56,146.54,6.32]
[1750843284413,6.82286769,146.57,146.54,6.32]
[1750843284618,5.50997528,146.57,146.54,6.32]
[1750843284917,34.2692507,146.58,146.54,6.32]
[1750843285216,5.50997528,146.57,146.54,6.32]
[1750843285410,5.50997528,146.56,146.54,6.32]
[1750843287312,5.50997528,146.57,146.54,6.32]
[1750843287914,5.50997528,146.57,146.54,95.02]
[1750843288416,5.50997528,146.57,146.54,6.32]
[1750843288648,5.50997528,146.56,146.54,6.32]
[1750843293003,12.33289576,146.57,146.54,6.32]
[1750843293320,5.50997528,146.56,146.54,6.32]
[1750843294533,5.50997528,146.57,146.54,6.32]
[1750843294725,5.50997528,146.57,146.54,13.14404626]
[1750843295237,5.50997528,146.57,146.54,6.32]
[1750843295940,1.4468169,146.58,146.56,5.50997528]
[1750843296121,1.4468169,146.58,146.57,5.50997528]
[1750843296736,1.4468169,146.58,146.56,28.38]
[1750843296915,1.4468169,146.58,146.57,5.50997528]
[1750843297120,1.4468169,146.58,146.57,12.33265386]
[1750843297328,1.4468169,146.58,146.56,28.38]
[1750843297528,1.4468169,146.58,146.57,5.50997528]
[1750843297909,1.4468169,146.58,146.56,33.88997528]
[1750843298334,1.4468169,146.58,146.57,5.50997528]
[1750843301033,1.4468169,146.58,146.57,12.33265386]
[1750843301240,1.4468169,146.58,146.57,39.10680272]
[1750843301417,1.4468169,146.58,146.57,20.45715386]
[1750843301616,1.4468169,146.58,146.57,13.96745386]
[1750843301936,1.4468169,146.58,146.57,48.62745386]
[1750843302313,1.4468169,146.58,146.57,137.32745386]
[1750843303527,1.4468169,146.58,146.57,155.97710272]
[1750843312650,1.4468169,146.58,146.57,130.18267858]
[1750843313223,1.4468169,146.58,146.57,6.3]
[1750843313461,1.4468169,146.58,146.57,37.28230272]
[1750843313949,1.4468169,146.58,146.57,18.63265386]
[1750843314653,1.4468169,146.58,146.57,13.12267858]
[1750843314953,1.4468169,146.58,146.57,6.3]
[1750843318054,13.7790053,146.58,146.57,6.3]
[1750843319254,1.4468169,146.58,146.57,6.3]
[1750843320134,1.4468169,146.58,146.57,107.33265386]
[1750843320357,1.4468169,146.58,146.57,125.98230272]
[1750843320735,1.4468169,146.58,146.57,151.98230272]
[1750843320937,5.50997528,146.66,146.58,18.64964886]
[1750843321143,1.5962,146.69,146.63,5.50997528]
[1750843321346,5.50997528,146.69,146.64,11.76997528]
[1750843321636,1.5962,146.73,146.65,28.34]
[1750843321834,5.50997528,146.7,146.66,12.32830764]
[1750843322154,32.81575189,146.72,146.66,12.32830764]
[1750843322326,5.50997528,146.7,146.66,12.32830764]
[1750843322526,26.0,146.7,146.66,12.32830764]
[1750843322743,1.5962,146.73,146.66,6.81833236]
[1750843322934,5.50997528,146.71,146.66,12.32830764]
[1750843323144,32.81580911,146.72,146.64,6.26]
[1750843323371,5.50997528,146.67,146.64,6.26]
[1750843324058,5.50997528,146.69,146.65,5.50997528]
[1750843324562,5.50997528,146.7,146.66,5.50997528]
[1750843325754,6.81616795,146.71,146.65,6.81861073]
[1750843326055,5.50997528,146.68,146.64,11.76997528]
[1750843326246,5.50997528,146.68,146.64,18.58929537]
[1750843326637,5.50997528,146.68,146.64,13.07932009]
[1750843326847,5.50997528,146.68,146.64,18.58929537]
[1750843327657,5.50997528,146.69,146.65,5.50997528]
[1750843328161,5.50997528,146.69,146.64,13.07932009]
[1750843328358,5.50997528,146.69,146.65,5.50997528]
[1750843328677,5.50997528,146.69,146.64,11.76997528]
[1750843328678,5.50997528,146.68,146.64,11.76997528]
[1750843328873,5.50997528,146.66,146.64,6.26]
[1750843329244,5.50997528,146.65,146.64,6.26]
[1750843329942,6.81722523,146.69,146.64,11.76997528]
[1750843330145,5.50997528,146.68,146.64,11.76997528]
[1750843330968,5.50997528,146.68,146.64,6.26]
[1750843331161,5.50997528,146.68,146.64,11.76997528]
[1750843331573,12.32755021,146.68,146.64,11.76997528]
[1750843331748,5.50997528,146.68,146.64,11.76997528]
[1750843331950,12.32727001,146.69,146.64,11.76997528]
[1750843332868,6.81663258,146.7,146.64,18.58938029]
[1750843333170,5.50997528,146.69,146.64,18.58938029]
[1750843333373,5.50997528,146.7,146.66,5.50997528]
[1750843333956,12.32632595,146.71,146.64,41.39940501]
[1750843334167,12.32632595,146.71,146.66,5.50997528]
[1750843334366,12.32632595,146.71,146.67,5.50997528]
[1750843335570,6.81635067,146.71,146.67,5.50997528]
[1750843335871,27.5962,146.73,146.69,5.50997528]
[1750843335872,5.50997528,146.73,146.69,5.50997528]
[1750843336049,5.50997528,146.73,146.7,6.26]
[1750843336970,12.32552525,146.73,146.7,6.26]
[1750843337269,5.50997528,146.72,146.7,6.26]
[1750843337467,6.81554997,146.73,146.7,6.26]
[1750843337671,5.50997528,146.72,146.7,6.26]
[1750843337875,12.32552525,146.73,146.7,6.26]
[1750843338062,5.50997528,146.73,146.7,6.26]
[1750843338251,12.32529484,146.73,146.7,6.26]
[1750843339077,6.81477443,146.74,146.7,6.26]
[1750843339379,5.50997528,146.73,146.7,6.26]
[1750843339974,5.50997528,146.73,146.7,13.07656961]
[1750843340278,5.50997528,146.73,146.7,6.26]
[1750843340978,6.81477443,146.74,146.7,6.26]
[1750843341205,5.50997528,146.73,146.7,6.26]
[1750843341682,5.50997528,146.73,146.7,13.07661475]
[1750843342054,6.8143025,146.76,146.7,18.58659003]
[1750843342259,5.50997528,146.76,146.72,5.50997528]
[1750843342571,5.50997528,146.75,146.71,5.50997528]
[1750843342761,5.50997528,146.76,146.72,5.50997528]
[1750843343670,23.84358607,146.79,146.67,44.64964886]
[1750843343671,5.50997528,146.73,146.67,6.81802686]
[1750843343878,5.50997528,146.72,146.68,11.74997528]
[1750843344186,5.50997528,146.72,146.68,6.24]
[1750843344380,5.50997528,146.72,146.68,11.74997528]
[1750843344582,5.50997528,146.72,146.68,6.24]
[1750843344791,5.50997528,146.72,146.68,11.74997528]
[1750843345493,26.0,146.73,146.68,6.24]
[1750843345697,5.50997528,146.7,146.68,6.24]
[1750843347507,5.50997528,146.69,146.68,6.24]
[1750843348740,6.81699367,146.7,146.68,6.24]
[1750843348999,5.50997528,146.69,146.68,6.24]
[1750843349298,12.32707255,146.69,146.68,6.24]
[1750843350702,1.5308,146.73,146.68,6.24]
[1750843350881,5.50997528,146.71,146.68,6.24]
[1750843351078,5.50997528,146.7,146.68,6.24]
[1750843351301,12.32707255,146.69,146.68,6.24]
[1750843352706,5.50997528,146.69,146.68,6.24]
[1750843353203,5.50997528,146.71,146.68,6.24]
[1750843353503,5.50997528,146.7,146.68,6.24]
[1750843353889,5.50997528,146.71,146.68,6.24]
[1750843354191,5.50997528,146.71,146.68,13.05745702]
[1750843355478,5.50997528,146.72,146.68,13.05745702]
[1750843355987,5.50997528,146.72,146.68,18.5674323]
[1750843356186,5.50997528,146.73,146.68,18.5674323]
[1750843357201,6.81526584,146.73,146.68,18.5674323]
[1750843357398,5.50997528,146.72,146.68,18.5674323]
[1750843358902,5.50997528,146.72,146.68,107.2674323]
[1750843359102,5.50997528,146.71,146.68,94.94]
[1750843359501,6.81477443,146.74,146.68,94.94]
[1750843359808,5.50997528,146.7,146.68,94.94]
[1750843359985,5.50997528,146.71,146.68,94.94]
[1750843360187,5.50997528,146.7,146.68,94.94]
[1750843360586,23.8517105,146.74,146.68,94.94]
[1750843360886,5.50997528,146.71,146.68,94.94]
[1750843361507,5.50997528,146.71,146.68,13.05751722]
[1750843361715,6.81477443,146.74,146.68,18.5674925]
[1750843361904,5.50997528,146.72,146.68,18.5674925]
[1750843362109,6.81477443,146.74,146.68,13.05751722]
[1750843362314,5.50997528,146.71,146.68,13.05751722]
[1750843363314,6.81554198,146.73,146.68,13.05751722]
[1750843363494,5.50997528,146.71,146.68,13.05751722]
[1750843364604,5.50997528,146.72,146.68,13.05751722]
[1750843365199,6.81477443,146.74,146.68,13.05751722]
[1750843365416,5.50997528,146.72,146.68,13.05751722]
[1750843365620,5.50997528,146.71,146.68,13.05751722]
[1750843367703,5.50997528,146.72,146.68,13.05751722]
[1750843367913,5.50997528,146.72,146.68,18.5674925]
[1750843368213,32.81448963,146.75,146.69,5.50997528]
[1750843368396,5.50997528,146.74,146.7,5.50997528]
[1750843368817,32.81448963,146.75,146.7,5.50997528]
[1750843368990,5.50997528,146.74,146.7,5.50997528]
[1750843369711,17.02997645,146.8,146.72,5.50997528]
[1750843370007,5.50997528,146.77,146.72,5.50997528]
[1750843370409,5.50997528,146.76,146.72,5.50997528]
[1750843371116,5.50997528,146.76,146.73,6.81523887]
[1750843371318,5.50997528,146.75,146.74,6.24]
[1750843371704,5.50997528,146.76,146.74,6.24]
[1750843372710,32.81220605,146.8,146.74,11.74997528]
[1750843372916,5.50997528,146.79,146.74,11.74997528]
[1750843373118,5.50997528,146.79,146.75,6.81431005]
[1750843373324,6.81220605,146.8,146.75,6.81431005]
[1750843373623,6.81220605,146.8,146.75,12.32428533]
[1750843373624,5.50997528,146.8,146.75,12.32428533]
[1750843374305,6.81153797,146.81,146.77,5.50997528]
[1750843374306,5.50997528,146.81,146.77,5.50997528]
[1750843374504,5.50997528,146.81,146.75,6.81431005]
[1750843374699,5.50997528,146.81,146.76,5.50997528]
[1750843375117,5.50997528,146.81,146.77,6.81338148]
[1750843375317,5.50997528,146.81,146.77,12.32335676]
[1750843375499,6.81013347,146.84,146.77,12.32335676]
[1750843375699,5.50997528,146.82,146.77,12.32335676]
[1750843376295,5.50997528,146.82,146.75,23.8500377]
[1750843376495,5.50997528,146.82,146.77,5.50997528]
[1750843377525,12.32107586,146.82,146.77,5.50997528]
[1750843378923,12.32107586,146.82,146.77,12.32291841]
[1750843379229,5.50997528,146.82,146.77,12.32291841]
[1750843379411,6.81077364,146.83,146.79,5.50997528]
[1750843379610,6.81077364,146.83,146.8,6.24]
[1750843379611,5.50997528,146.82,146.8,6.24]
[1750843380437,5.50997528,146.81,146.8,6.24]
[1750843381126,31.50997528,146.81,146.8,6.24]
[1750843381429,55.66959942,146.81,146.8,6.24]
[1750843382494,62.48112452,146.81,146.8,6.24]
[1750843382701,32.8115251,146.81,146.73,6.81518112]
[1750843382926,5.50997528,146.77,146.74,6.24]
[1750843385029,5.50997528,146.77,146.74,13.05474674]
[1750843385535,5.50997528,146.77,146.74,6.24]
[1750843385709,5.50997528,146.76,146.74,6.24]
[1750843385912,5.50997528,146.77,146.74,6.24]
[1750843386257,5.50997528,146.77,146.74,13.05467444]
[1750843386414,5.50997528,146.79,146.75,5.50997528]
[1750843387027,5.50997528,146.78,146.74,107.26464972]
[1750843389538,5.50997528,146.77,146.74,94.94]
[1750843390231,5.50997528,146.78,146.74,107.26461604]
[1750843391242,5.50997528,146.78,146.74,101.75464076]
[1750843391534,5.50997528,146.77,146.74,94.94]
[1750843391740,5.50997528,146.76,146.74,94.94]
[1750843392311,5.50997528,146.77,146.74,94.94]
[1750843392842,5.50997528,146.77,146.74,101.75474396]
[1750843393640,5.50997528,146.77,146.74,13.05474396]
[1750843395146,5.50997528,146.77,146.74,6.24]
[1750843395755,5.50997528,146.75,146.7,1.5583]
[1750843395927,26.0,146.74,146.7,6.24]
[1750843396235,5.50997528,146.71,146.7,6.24]
[1750843396535,26.0,146.74,146.7,6.24]
[1750843396741,5.50997528,146.72,146.7,6.24]
[1750843397114,6.81384573,146.76,146.7,6.24]
[1750843397317,5.50997528,146.73,146.7,13.05646193]
[1750843397521,5.50997528,146.73,146.7,6.24]
[1750843397723,5.50997528,146.72,146.7,6.24]
[1750843397939,5.50997528,146.71,146.7,6.24]
[1750843398444,5.50997528,146.72,146.7,13.05657846]
[1750843398827,5.50997528,146.73,146.7,13.05657846]
[1750843399128,5.50997528,146.76,146.72,5.50997528]
[1750843399535,5.50997528,146.76,146.71,5.50997528]
[1750843399943,5.50997528,146.75,146.71,5.50997528]
[1750843400136,5.50997528,146.74,146.7,18.56655374]
[1750843400344,5.50997528,146.74,146.7,13.05657846]
[1750843401146,5.50997528,146.73,146.7,13.05657846]
[1750843401325,5.50997528,146.73,146.7,101.75657846]
[1750843402047,5.50997528,146.71,146.7,94.94]
[1750843403855,5.50997528,146.72,146.7,94.94]
[1750843406652,6.81498935,146.74,146.7,101.75662326]
[1750843406852,5.50997528,146.73,146.7,101.75662326]
[1750843410654,5.50997528,146.74,146.7,101.75662326]
[1750843410859,5.50997528,146.77,146.72,31.50997528]
[1750843411042,5.50997528,146.77,146.72,33.06647528]
[1750843411560,5.50997528,146.77,146.73,5.50997528]
[1750843413072,5.50997528,146.79,146.74,12.32474971]
[1750843413443,5.50997528,146.78,146.74,12.32474971]
[1750843413764,5.50997528,146.8,146.75,5.50997528]
[1750843413936,5.50997528,146.8,146.76,6.22]
[1750843414945,5.50997528,146.8,146.76,13.03371007]
[1750843415161,5.50997528,146.79,146.76,13.03371007]
[1750843416760,7.6018,146.83,146.76,256.14368535]
[1750843417062,5.50997528,146.81,146.76,256.14368535]
[1750843417435,6.81109639,146.82,146.76,256.14368535]
[1750843417636,5.50997528,146.81,146.76,256.14368535]
[1750843420459,5.50997528,146.8,146.76,100.42997528]
[1750843420867,5.50997528,146.79,146.76,94.92]
[1750843421275,12.32289257,146.78,146.76,6.22]
[1750843423171,6.81291729,146.78,146.76,6.22]
[1750843423345,12.32264573,146.79,146.76,6.22]
[1750843423666,6.81106116,146.82,146.76,11.72997528]
[1750843423848,31.50997528,146.8,146.76,11.72997528]
[1750843424368,12.32254686,146.79,146.76,6.22]
[1750843424954,5.50997528,146.78,146.76,6.22]
[1750843425362,12.32254686,146.79,146.76,6.22]
[1750843428375,6.81257158,146.79,146.76,6.22]
[1750843428570,17.0276529,146.82,146.76,11.72997528]
[1750843428571,6.8115251,146.81,146.76,11.72997528]
[1750843428881,5.50997528,146.8,146.76,11.72997528]
[1750843429090,5.50997528,146.8,146.76,6.22]
[1750843429374,17.0276529,146.82,146.76,6.22]
[1750843429375,5.50997528,146.79,146.76,6.22]
[1750843430260,17.0276529,146.82,146.76,6.22]
[1750843430261,5.50997528,146.78,146.76,6.22]
[1750843430968,6.81338148,146.77,146.76,6.22]
[1750843431466,12.32335676,146.77,146.76,6.22]
[1750843433174,6.81245316,146.79,146.76,6.22]
[1750843433478,5.50997528,146.77,146.76,6.22]
[1750843433781,6.81245316,146.79,146.76,6.22]
[1750843434268,5.50997528,146.77,146.76,6.22]
[1750843435376,12.32335676,146.77,146.76,6.22]
[1750843437876,6.81338148,146.77,146.76,6.22]
[1750843438058,12.32335676,146.77,146.76,6.22]
[1750843439974,5.50997528,146.77,146.76,6.22]
[1750843440179,12.32335676,146.77,146.76,6.22]
[1750843443861,12.19834506,146.77,146.76,6.22]
[1750843444860,29.23179876,146.77,146.71,6.2]
[1750843445059,5.50997528,146.73,146.71,6.2]
[1750843445392,5.50997528,146.72,146.71,6.2]
[1750843446063,12.32567866,146.72,146.71,6.2]
[1750843450262,17.03412384,146.77,146.71,6.2]
[1750843450464,12.32567866,146.72,146.71,6.2]
[1750843451067,12.32567866,146.72,146.66,50.32]
[1750843451269,5.50997528,146.69,146.66,50.32]
[1750843452280,5.50997528,146.68,146.66,50.32]
[1750843452788,5.50997528,146.67,146.66,6.2]
[1750843452991,5.50997528,146.67,146.61,6.2]
[1750843453170,5.50997528,146.63,146.61,6.2]
[1750843454287,5.50997528,146.65,146.61,12.33073915]
[1750843454492,5.50997528,146.65,146.62,6.2]
[1750843455187,5.50997528,146.65,146.62,13.01999948]
[1750843455894,6.81812709,146.67,146.62,13.01999948]
[1750843455895,5.50997528,146.66,146.62,18.52997476]
[1750843457588,6.81752847,146.69,146.62,18.52997476]